fUST/lending_fUST_20240912
["ID","MTS","AMOUNT","RATE_DAILY","PERIOD"]
[337780703,1726111853345,-190.53864701,0.00022191,2]
[337780704,1726111853355,-500.0,0.00022191,2]
[337780705,1726111853365,-500.0,0.00022191,2]
[337780706,1726111853374,-500.0,0.00022191,2]
[337780707,1726111853385,-500.0,0.00022191,2]
[337780708,1726111853396,-2322.92,0.00022191,2]
[337780709,1726111853406,-500.0,0.00022191,2]
[337780710,1726111853418,-500.0,0.00022191,2]
[337780711,1726111853428,-500.0,0.00022191,2]
[337780712,1726111853439,-500.0,0.00022191,2]
[337780713,1726111853450,-1859.18,0.00022191,2]
[337780714,1726111853462,-500.0,0.00022191,2]
[337780715,1726111853472,-1831.5,0.00022191,2]
[337780716,1726111853482,-565.63108959,0.00022191,2]
[337780717,1726111853492,-500.0,0.00022191,2]
[337780718,1726111853502,-500.0,0.00022191,2]
[337780719,1726111853514,-500.0,0.00022191,2]
[337780720,1726111853524,-1088.69,0.00022191,2]
[337780721,1726111853534,-500.0,0.00022191,2]
[337780722,1726111853545,-521.30724756,0.00022191,2]
[337780723,1726111853558,-500.0,0.00022191,2]
[337780724,1726111853569,-92.68494407,0.00022191,2]
[337780725,1726111854558,-151.0,0.00021917,2]
[337780726,1726111854570,-407.31505593,0.00022191,2]
[337780727,1726111854579,-500.0,0.00022191,2]
[337780728,1726111854589,-533.31,0.00022191,2]
[337780729,1726111854599,-500.0,0.00022191,2]
[337780730,1726111854609,-502.06281062,0.00022191,2]
[337780731,1726111854618,-500.0,0.00022191,2]
[337780732,1726111854627,-500.0,0.00022191,2]
[337780733,1726111854638,-1334.28,0.00022191,2]
[337780734,1726111854648,-501.65264834,0.00022191,2]
[337780735,1726111854658,-428.20512637,0.00022191,2]
[337780738,1726112618726,10000.0,0.00019,2]
[337780740,1726112730295,-300.0,0.00019749,2]
[337780741,1726112730320,-196.53891876,0.00019749,2]
[337780752,1726112829114,-158.69958154,0.00019749,2]
[337780753,1726112830130,-141.30041846,0.00019749,2]
[337780754,1726112830153,-48.08832141,0.00019749,2]
[337780755,1726112836095,-160.39601461,0.00019749,2]
[337780756,1726112845104,-91.51566398,0.00019749,2]
[337780757,1726112845126,-1588.94583481,0.0001975,2]
[337780759,1726112852169,-9403.97545329,0.0001975,2]
[337780760,1726112883135,-300.0,0.00019749,2]
[337780761,1726112883160,-6230.46,0.0001975,2]
[337780762,1726112920997,-210.0,0.00019894,2]
[337780763,1726112953100,-300.0,0.00019893,2]
[337780764,1726112953123,-21952.53634899,0.00019894,2]
[337780765,1726112953157,-2737.46365101,0.00019894,2]
[337780766,1726112953178,-1918.9867816,0.00019912,2]
[337780767,1726112953198,-5772.2818771,0.0001993,2]
[337780768,1726112953220,-1062.6972187,0.00019948,2]
[337780769,1726112962165,-1431.61739198,0.00019948,2]
[337780770,1726112962186,-1236.6018381,0.00020049,2]
[337780771,1726112962210,-250.0,0.00020071,2]
[337780772,1726112962234,-250.0,0.00020126,2]
[337780773,1726112962259,-250.0,0.00020181,2]
[337780774,1726112962282,-250.0,0.00020236,2]
[337780775,1726112962306,-250.0,0.00020291,2]
[337780776,1726112962328,-250.0,0.00020346,2]
[337780777,1726112962350,-250.0,0.00020401,2]
[337780778,1726112962372,-250.0,0.00020457,2]
[337780779,1726112962393,-250.0,0.00020512,2]
[337780780,1726112962416,-250.0,0.00020567,2]
[337780781,1726112962436,-176.376512,0.00020618,2]
[337780782,1726112962459,-250.0,0.00020622,2]
[337780783,1726112962480,-250.0,0.00020677,2]
[337780784,1726112962502,-250.0,0.00020732,2]
[337780785,1726112962524,-250.0,0.00020787,2]
[337780786,1726112962545,-250.0,0.00020842,2]
[337780787,1726112962567,-174.501217,0.00020892,2]
[337780788,1726112962588,-250.0,0.00020897,2]
[337780789,1726112962609,-174.501217,0.00020909,2]
[337780790,1726112962629,-174.501217,0.00020927,2]
[337780791,1726112962653,-174.501217,0.00020944,2]
[337780792,1726112962681,-250.0,0.00020952,2]
[337780793,1726112962703,-174.501217,0.00020962,2]
[337780794,1726112962724,-174.501217,0.00020979,2]
[337780795,1726112962748,-174.501217,0.00020996,2]
[337780796,1726112962770,-250.0,0.00021007,2]
[337780797,1726112962791,-250.0,0.00021062,2]
[337780798,1726112962812,-122.68384269,0.00021117,2]
[337780799,1726112966126,-127.31615731,0.00021117,2]
[337780800,1726112966150,-150.45743637,0.00021681,2]
[337780801,1726112966175,-174.0646134,0.00021823,2]
[337780802,1726112966197,-153.0,0.00021823,2]
[337780803,1726112966218,-153.0,0.00021823,2]
[337780804,1726112966241,-500.0,0.00021899,2]
[337780805,1726112966264,-500.0,0.00021899,2]
[337780806,1726112966288,-175.46490508,0.00021899,2]
[337780807,1726112966313,-500.0,0.00021899,2]
[337780808,1726112966336,-500.0,0.00021899,2]
[337780809,1726112966361,-421.26573114,0.00021899,2]
[337780810,1726112966387,-19276.61078689,0.000219,2]
[337780813,1726113025050,265.31597206,0.00021079,2]
[337780982,1726113039062,-1024.03429324,0.00021079,2]
[337780983,1726113039072,-20.85186824,0.00021817,2]
[337780984,1726113039096,-144.47812307,0.00021817,2]
[337780985,1726113039108,-738.46970076,0.00021817,2]
[337780986,1726113039121,-541.57500783,0.00021817,2]
[337780987,1726113039132,-32173.54285003,0.000219,2]
[337780988,1726113039145,-150.112233,0.000219,3]
[337780989,1726113039156,-150.112233,0.000219,2]
[337780990,1726113039167,-500.0,0.00021906,2]
[337780991,1726113039177,-242.86861765,0.00021906,2]
[337780992,1726113039187,-381.09323933,0.00021906,2]
[337780993,1726113039197,-157.91841457,0.00021906,2]
[337780994,1726113039209,-178263.363006,0.00021907,3]
[337780995,1726113039221,-242378.723122,0.00021907,3]
[337780996,1726113039231,-160.03653084,0.00021916,2]
[337780997,1726113039241,-500.0,0.00021917,2]
[337780998,1726113039251,-500.0,0.00021917,2]
[337780999,1726113039262,-379.9754847,0.00021917,2]
[337781000,1726113039272,-500.0,0.00021917,2]
[337781001,1726113039281,-395.95382375,0.00021917,2]
[337781002,1726113039291,-500.0,0.00021917,2]
[337781003,1726113039300,-500.0,0.00021917,2]
[337781004,1726113039311,-501.14499569,0.00021917,2]
[337781005,1726113039321,-404.13349103,0.00021917,2]
[337781006,1726113039330,-501.24529178,0.00021917,2]
[337781007,1726113039340,-500.0,0.00021917,2]
[337781008,1726113039349,-500.0,0.00021917,2]
[337781009,1726113039360,-500.0,0.00021917,2]
[337781010,1726113039370,-820.41,0.00021917,2]
[337781011,1726113039379,-500.0,0.00021917,2]
[337781012,1726113039388,-779.66,0.00021917,2]
[337781013,1726113039398,-500.0,0.00021917,2]
[337781014,1726113039407,-500.0,0.00021917,2]
[337781015,1726113039417,-500.0,0.00021917,2]
[337781016,1726113039426,-500.0,0.00021917,2]
[337781017,1726113039435,-1125.11,0.00021917,2]
[337781018,1726113039444,-394.28397163,0.00021917,2]
[337781019,1726113039454,-500.0,0.00021917,2]
[337781020,1726113039463,-501.60475851,0.00021917,2]
[337781021,1726113039472,-501.63597085,0.00021917,2]
[337781022,1726113039482,-500.0,0.00021917,2]
[337781023,1726113039491,-500.0,0.00021917,2]
[337781024,1726113039500,-500.0,0.00021917,2]
[337781025,1726113039510,-500.0,0.00021917,2]
[337781026,1726113039519,-500.0,0.00021917,2]
[337781027,1726113039530,-500.0,0.00021917,2]
[337781028,1726113039539,-500.0,0.00021917,2]
[337781029,1726113039549,-500.87515719,0.00021917,2]
[337781030,1726113039560,-501.05736903,0.00021917,2]
[337781031,1726113039570,-1003.22,0.00021917,2]
[337781032,1726113039582,-679.73,0.00021917,2]
[337781033,1726113039593,-1042.23,0.00021917,2]
[337781034,1726113039603,-500.0,0.00021917,2]
[337781035,1726113039614,-500.0,0.00021917,2]
[337781036,1726113039624,-500.0,0.00021917,2]
[337781037,1726113039635,-500.0,0.00021917,2]
[337781038,1726113039645,-500.0,0.00021917,2]
[337781039,1726113039655,-500.0,0.00021917,2]
[337781040,1726113039664,-603.85,0.00021917,2]
[337781041,1726113039673,-500.0,0.00021917,2]
[337781042,1726113039683,-505.48949866,0.00021917,2]
[337781043,1726113039692,-500.0,0.00021917,2]
[337781044,1726113039702,-500.0,0.00021917,2]
[337781045,1726113039713,-860.23,0.00021917,2]
[337781046,1726113039723,-656.2,0.00021917,2]
[337781047,1726113039732,-500.0,0.00021917,2]
[337781048,1726113039742,-500.0,0.00021917,2]
[337781049,1726113039751,-500.0,0.00021917,2]
[337781050,1726113039761,-501.75615893,0.00021917,2]
[337781051,1726113039771,-500.0,0.00021917,2]
[337781052,1726113039782,-500.0,0.00021917,2]
[337781053,1726113039792,-603.26,0.00021917,2]
[337781054,1726113039802,-509.97526314,0.00021917,2]
[337781055,1726113039812,-500.87703025,0.00021917,2]
[337781056,1726113039822,-200.0,0.00021917,2]
[337781057,1726113039834,-500.0,0.00021917,2]
[337781058,1726113039844,-500.0,0.00021917,2]
[337781059,1726113039855,-632.91,0.00021917,2]
[337781060,1726113039865,-509.28291277,0.00021917,2]
[337781061,1726113039876,-479.31967112,0.00021917,2]
[337781062,1726113039889,-500.0,0.00021917,2]
[337781063,1726113039899,-500.0,0.00021917,2]
[337781064,1726113039908,-500.0,0.00021917,2]
[337781065,1726113039919,-500.0,0.00021917,2]
[337781066,1726113039929,-500.0,0.00021917,2]
[337781067,1726113039939,-500.0,0.00021917,2]
[337781068,1726113039951,-500.0,0.00021917,2]
[337781069,1726113039962,-1057.21225208,0.00021917,2]
[337781070,1726113039979,-1294.15774792,0.00021917,2]
[337781071,1726113039989,-321.56164604,0.00021917,2]
[337781072,1726113040000,-500.0,0.00021917,2]
[337781073,1726113040009,-500.0,0.00021917,2]
[337781074,1726113040020,-500.0,0.00021917,2]
[337781075,1726113040031,-500.0,0.00021917,2]
[337781076,1726113040043,-503.08988214,0.00021917,2]
[337781077,1726113040055,-500.0,0.00021917,2]
[337781078,1726113040067,-500.0,0.00021917,2]
[337781079,1726113040077,-544.39,0.00021917,2]
[337781080,1726113040089,-505.72544276,0.00021917,2]
[337781081,1726113040100,-500.0,0.00021917,2]
[337781082,1726113040112,-190.53864701,0.00021917,2]
[337781083,1726113040121,-500.0,0.00021917,2]
[337781084,1726113040133,-500.0,0.00021917,2]
[337781085,1726113040143,-500.0,0.00021917,2]
[337781086,1726113040152,-500.0,0.00021917,2]
[337781087,1726113040164,-500.0,0.00021917,2]
[337781088,1726113040175,-500.0,0.00021917,2]
[337781089,1726113040185,-500.0,0.00021917,2]
[337781090,1726113040196,-508.00435842,0.00021917,2]
[337781091,1726113040206,-507.99219363,0.00021917,2]
[337781092,1726113040216,-500.0,0.00021917,2]
[337781093,1726113040226,-500.82846974,0.00021917,2]
[337781094,1726113040237,-1107.99,0.00021917,2]
[337781095,1726113040248,-1461.45,0.00021917,2]
[337781097,1726113040258,-504.34766947,0.00021917,2]
[337781099,1726113040268,-500.0,0.00021917,2]
[337781100,1726113040278,-500.0,0.00021917,2]
[337781101,1726113040288,-500.0,0.00021917,2]
[337781102,1726113040300,-500.0,0.00021917,2]
[337781103,1726113040309,-500.0,0.00021917,2]
[337781104,1726113040321,-458.06577066,0.00021917,2]
[337781105,1726113040331,-500.0,0.00021917,2]
[337781106,1726113040341,-500.0,0.00021917,2]
[337781107,1726113040354,-500.0,0.00021917,2]
[337781108,1726113040363,-500.0,0.00021917,2]
[337781110,1726113040373,-500.0,0.00021917,2]
[337781112,1726113040382,-500.0,0.00021917,2]
[337781113,1726113040394,-500.0,0.00021917,2]
[337781114,1726113040403,-500.0,0.00021917,2]
[337781115,1726113040413,-500.0,0.00021917,2]
[337781116,1726113040422,-500.81888714,0.00021917,2]
[337781117,1726113040432,-500.0,0.00021917,2]
[337781118,1726113040442,-500.0,0.00021917,2]
[337781119,1726113040451,-304.47433031,0.00021917,2]
[337781120,1726113040463,-500.0,0.00021917,2]
[337781121,1726113040473,-504.92241837,0.00021917,2]
[337781122,1726113040484,-500.0,0.00021917,2]
[337781123,1726113040494,-504.53129312,0.00021917,2]
[337781124,1726113040504,-500.0,0.00021917,2]
[337781125,1726113040515,-500.0,0.00021917,2]
[337781126,1726113040527,-1043.33,0.00021917,2]
[337781127,1726113040538,-500.0,0.00021917,2]
[337781128,1726113040548,-500.0,0.00021917,2]
[337781129,1726113040558,-500.0,0.00021917,2]
[337781130,1726113040568,-501.72141836,0.00021917,2]
[337781131,1726113040578,-500.0,0.00021917,2]
[337781132,1726113040587,-505.67625459,0.00021917,2]
[337781133,1726113040598,-1223.09,0.00021917,2]
[337781134,1726113040612,-1442.63,0.00021917,2]
[337781135,1726113040621,-1320.81,0.00021917,2]
[337781136,1726113040631,-500.0,0.00021917,2]
[337781137,1726113040643,-500.0,0.00021917,2]
[337781138,1726113040653,-500.0,0.00021917,2]
[337781139,1726113040662,-500.0,0.00021917,2]
[337781140,1726113040673,-500.0,0.00021917,2]
[337781141,1726113040684,-541.41800902,0.00021917,2]
[337781142,1726113040696,-1377.19,0.00021917,2]
[337781143,1726113040707,-1298.29,0.00021917,2]
[337781144,1726113040718,-1528.89,0.00021917,2]
[337781145,1726113040730,-965.21,0.00021917,2]
[337781146,1726113040739,-500.0,0.00021917,2]
[337781147,1726113040751,-500.0,0.00021917,2]
[337781148,1726113040762,-500.0,0.00021917,2]
[337781149,1726113040772,-500.0,0.00021917,2]
[337781150,1726113040783,-503.50902903,0.00021917,2]
[337781151,1726113040793,-500.0,0.00021917,2]
[337781152,1726113040804,-461.4468156,0.00021917,2]
[337781153,1726113040814,-500.0,0.00021917,2]
[337781154,1726113040824,-500.0,0.00021917,2]
[337781155,1726113040834,-500.0,0.00021917,2]
[337781156,1726113040844,-500.0,0.00021917,2]
[337781157,1726113040855,-500.0,0.00021917,2]
[337781158,1726113040867,-500.0,0.00021917,2]
[337781159,1726113040878,-500.0,0.00021917,2]
[337781160,1726113040887,-500.0,0.00021917,2]
[337781161,1726113040897,-1212.95,0.00021917,2]
[337781162,1726113040906,-500.0,0.00021917,2]
[337781163,1726113040916,-504.92599367,0.00021917,2]
[337781164,1726113040926,-606.49,0.00021917,2]
[337781165,1726113040937,-500.0,0.00021917,2]
[337781166,1726113040946,-500.0,0.00021917,2]
[337781167,1726113040957,-2.78382132,0.00021917,2]
[337781168,1726113040976,-500.03285656,0.00021917,2]
[337781169,1726113040990,-500.0,0.00021917,2]
[337781170,1726113040999,-501.31356923,0.00021917,2]
[337781171,1726113041008,-586.63,0.00021917,2]
[337781172,1726113041019,-269.11894722,0.00021917,2]
[337781173,1726113041045,-230.88105278,0.00021917,2]
[337781174,1726113041055,-501.32347331,0.00021917,2]
[337781175,1726113041064,-500.0,0.00021917,2]
[337781176,1726113041075,-500.0,0.00021917,2]
[337781177,1726113041084,-500.0,0.00021917,2]
[337781178,1726113041094,-492.23451017,0.00021917,2]
[337781179,1726113041104,-500.0,0.00021917,2]
[337781180,1726113041300,-500.0,0.00021917,2]
[337781181,1726113041313,-500.0,0.00021917,2]
[337781182,1726113041325,-341.6142819,0.00021917,2]
[337781183,1726113041338,-158.3857181,0.00021917,2]
[337781184,1726113041348,-500.0,0.00021917,2]
[337781185,1726113041358,-500.0,0.00021917,2]
[337781186,1726113041368,-500.0,0.00021917,2]
[337781187,1726113041377,-619.72,0.00021917,2]
[337781188,1726113041386,-506.59866403,0.00021917,2]
[337781189,1726113041396,-500.0,0.00021917,2]
[337781190,1726113041406,-520.90787138,0.00021917,2]
[337781191,1726113041415,-500.0,0.00021917,2]
[337781192,1726113041425,-500.0,0.00021917,2]
[337781193,1726113041434,-500.0,0.00021917,2]
[337781194,1726113041444,-529.4,0.00021917,2]
[337781195,1726113041454,-500.0,0.00021917,2]
[337781196,1726113041463,-334.91140219,0.00021917,2]
[337781197,1726113041472,-922.57,0.00021917,2]
[337781198,1726113041481,-500.0,0.00021917,2]
[337781199,1726113041491,-565.63108959,0.00021917,2]
[337781200,1726113041500,-500.0,0.00021917,2]
[337781201,1726113041509,-1258.36,0.00021917,2]
[337781202,1726113041518,-500.0,0.00021917,2]
[337781203,1726113041528,-500.0,0.00021917,2]
[337781204,1726113041537,-500.0,0.00021917,2]
[337781205,1726113041547,-500.0,0.00021917,2]
[337781206,1726113041556,-500.0,0.00021917,2]
[337781207,1726113041567,-500.0,0.00021917,2]
[337781208,1726113041577,-580.2,0.00021917,2]
[337781209,1726113041586,-500.0,0.00021917,2]
[337781210,1726113041595,-500.0,0.00021917,2]
[337781211,1726113041605,-550.27628128,0.00021917,2]
[337781212,1726113041614,-500.0,0.00021917,2]
[337781213,1726113041623,-151.0,0.00021917,2]
[337781214,1726113041634,-948.05,0.00021917,2]
[337781215,1726113041644,-795.34,0.00021917,2]
[337781216,1726113041653,-511.33152353,0.00021917,2]
[337781217,1726113041662,-500.0,0.00021917,2]
[337781218,1726113041672,-151.0,0.00021917,2]
[337781219,1726113041681,-504.93812172,0.00021917,2]
[337781220,1726113041691,-520.0941053,0.00021917,2]
[337781221,1726113041700,-500.0,0.00021917,2]
[337781222,1726113041709,-500.0,0.00021917,2]
[337781223,1726113041721,-511.09718477,0.00021917,2]
[337781224,1726113041732,-843.79,0.00021917,2]
[337781225,1726113041743,-580.1,0.00021917,2]
[337781226,1726113041754,-501.9182416,0.00021917,2]
[337781227,1726113041764,-500.0,0.00021917,2]
[337781228,1726113041774,-500.0,0.00021917,2]
[337781229,1726113041783,-1166.91,0.00021917,2]
[337781230,1726113041793,-500.0,0.00021917,2]
[337781231,1726113041802,-500.0,0.00021917,2]
[337781232,1726113041812,-1066.88,0.00021917,2]
[337781233,1726113041822,-500.0,0.00021917,2]
[337781234,1726113041832,-386.3019457,0.00021917,2]
[337781235,1726113041842,-517.69081038,0.00021917,2]
[337781236,1726113042111,-5.07266113,0.00021917,2]
[337781237,1726113042122,-508.50948599,0.00021917,2]
[337781238,1726113042131,-1739.33,0.00021917,2]
[337781239,1726113042141,-795.02,0.00021917,2]
[337781240,1726113042151,-304.08789527,0.00021917,2]
[337781241,1726113042160,-500.0,0.00021917,2]
[337781242,1726113042170,-500.0,0.00021917,2]
[337781243,1726113042180,-500.0,0.00021917,2]
[337781244,1726113042190,-500.0,0.00021917,2]
[337781245,1726113042199,-504.05739092,0.00021917,2]
[337781246,1726113042209,-500.0,0.00021917,2]
[337781247,1726113042218,-500.0,0.00021917,2]
[337781248,1726113042233,-500.0,0.00021917,2]
[337781249,1726113042242,-671.73,0.00021917,2]
[337781250,1726113042251,-618.35,0.00021917,2]
[337781251,1726113042261,-500.0,0.00021917,2]
[337781252,1726113042271,-763.48,0.00021917,2]
[337781253,1726113042281,-725.05,0.00021917,2]
[337781254,1726113042291,-151.0,0.00021917,2]
[337781255,1726113042301,-500.0,0.00021917,2]
[337781256,1726113042310,-500.0,0.00021917,2]
[337781257,1726113042320,-955.39,0.00021917,2]
[337781258,1726113042330,-509.39947793,0.00021917,2]
[337781259,1726113042339,-500.0,0.00021917,2]
[337781260,1726113042349,-504.27,0.00021917,2]
[337781261,1726113042359,-502.29830061,0.00021917,2]
[337781262,1726113042369,-500.0,0.00021917,2]
[337781263,1726113042378,-500.0,0.00021917,2]
[337781264,1726113042387,-846.7,0.00021917,2]
[337781265,1726113042396,-501.38098313,0.00021917,2]
[337781266,1726113042406,-500.0,0.00021917,2]
[337781267,1726113042416,-500.0,0.00021917,2]
[337781268,1726113042427,-506.10313978,0.00021917,2]
[337781269,1726113042437,-500.0,0.00021917,2]
[337781270,1726113042447,-1264.64,0.00021917,2]
[337781271,1726113042458,-500.0,0.00021917,2]
[337781272,1726113042468,-500.0,0.00021917,2]
[337781273,1726113042483,-500.0,0.00021917,2]
[337781274,1726113042493,-500.0,0.00021917,2]
[337781275,1726113042502,-513.15700449,0.00021917,2]
[337781276,1726113042511,-500.0,0.00021917,2]
[337781277,1726113042520,-500.0,0.00021917,2]
[337781278,1726113042529,-486.5567268,0.00021917,2]
[337781279,1726113042539,-500.0,0.00021917,2]
[337781280,1726113042548,-500.30966426,0.00021917,2]
[337781281,1726113042557,-500.84350394,0.00021917,2]
[337781282,1726113042566,-1991.48,0.00021917,2]
[337781283,1726113042576,-511.12799535,0.00021917,2]
[337781284,1726113042585,-500.0,0.00021917,2]
[337781285,1726113042595,-507.73872381,0.00021917,2]
[337781286,1726113042605,-505.57282194,0.00021917,2]
[337781287,1726113042615,-1365.29,0.00021917,2]
[337781288,1726113042624,-524.15952806,0.00021917,2]
[337781289,1726113042634,-500.0,0.00021917,2]
[337781290,1726113042643,-500.0,0.00021917,2]
[337781291,1726113042653,-500.0,0.00021917,2]
[337781292,1726113042662,-500.0,0.00021917,2]
[337781293,1726113042672,-640.88,0.00021917,2]
[337781294,1726113042681,-500.0,0.00021917,2]
[337781295,1726113042691,-1609.15,0.00021917,2]
[337781296,1726113042700,-151.0,0.00021917,2]
[337781297,1726113042709,-871.58,0.00021917,2]
[337781298,1726113042719,-205.6333718,0.00021917,2]
[337781299,1726113042729,-500.0,0.00021917,2]
[337781300,1726113042739,-151.0,0.00021917,2]
[337781301,1726113042748,-151.0,0.00021917,2]
[337781302,1726113042759,-1193.33,0.00021917,2]
[337781303,1726113042769,-500.0,0.00021917,2]
[337781304,1726113042778,-497.9229358,0.00021917,2]
[337781305,1726113042788,-523.393542,0.00021917,2]
[337781306,1726113042797,-503.71503393,0.00021917,2]
[337781307,1726113042807,-500.0,0.00021917,2]
[337781308,1726113042816,-502.0736285,0.00021917,2]
[337781309,1726113042826,-523.393542,0.00021917,2]
[337781310,1726113042837,-502.84699057,0.00021917,2]
[337781311,1726113042848,-551.23,0.00021917,2]
[337781312,1726113042858,-500.0,0.00021917,2]
[337781313,1726113042867,-500.0,0.00021917,2]
[337781314,1726113042877,-502.61579681,0.00021917,2]
[337781315,1726113042888,-732.41,0.00021917,2]
[337781316,1726113042898,-500.0,0.00021917,2]
[337781317,1726113042909,-507.63238794,0.00021917,2]
[337781318,1726113042919,-500.0,0.00021917,2]
[337781319,1726113042931,-500.0,0.00021917,2]
[337781320,1726113042942,-500.0,0.00021917,2]
[337781321,1726113042953,-500.0,0.00021917,2]
[337781322,1726113042964,-516.61799226,0.00021917,2]
[337781323,1726113042973,-500.0,0.00021917,2]
[337781324,1726113042991,-2322.92,0.00021917,2]
[337781325,1726113043001,-500.0,0.00021917,2]
[337781326,1726113043011,-442.22506216,0.00021917,2]
[337781327,1726113043020,-503.54136377,0.00021917,2]
[337781328,1726113043030,-504.02585046,0.00021917,2]
[337781329,1726113043040,-500.0,0.00021917,2]
[337781330,1726113043049,-1831.5,0.00021917,2]
[337781331,1726113043058,-500.0,0.00021917,2]
[337781332,1726113043067,-500.0,0.00021917,2]
[337781333,1726113043077,-500.0,0.00021917,2]
[337781334,1726113043086,-500.0,0.00021917,2]
[337781335,1726113043095,-502.76981014,0.00021917,2]
[337781336,1726113043104,-497.07445143,0.00021917,2]
[337781337,1726113043113,-500.90141478,0.00021917,2]
[337781338,1726113043123,-500.0,0.00021917,2]
[337781339,1726113043133,-500.0,0.00021917,2]
[337781341,1726113043144,-500.0,0.00021917,2]
[337781342,1726113043154,-500.0,0.00021917,2]
[337781343,1726113043163,-525.30879091,0.00021917,2]
[337781344,1726113043173,-1001.44,0.00021917,2]
[337781345,1726113043183,-500.0,0.00021917,2]
[337781346,1726113043193,-500.0,0.00021917,2]
[337781347,1726113043203,-500.0,0.00021917,2]
[337781348,1726113043213,-500.0,0.00021917,2]
[337781349,1726113043224,-500.0,0.00021917,2]
[337781350,1726113043234,-695.7,0.00021917,2]
[337781351,1726113043244,-500.0,0.00021917,2]
[337781352,1726113043255,-500.0,0.00021917,2]
[337781353,1726113043265,-500.0,0.00021917,2]
[337781354,1726113043275,-500.0,0.00021917,2]
[337781355,1726113043285,-500.0,0.00021917,2]
[337781356,1726113043295,-305.13595677,0.00021917,2]
[337781357,1726113043307,-500.0,0.00021917,2]
[337781358,1726113043317,-804.51,0.00021917,2]
[337781359,1726113043327,-500.0,0.00021917,2]
[337781360,1726113043337,-500.0,0.00021917,2]
[337781361,1726113043348,-451.90440514,0.00021917,2]
[337781362,1726113043359,-500.0,0.00021917,2]
[337781363,1726113043369,-500.0,0.00021917,2]
[337781364,1726113043379,-151.0,0.00021917,2]
[337781365,1726113043388,-500.0,0.00021917,2]
[337781366,1726113043398,-500.0,0.00021917,2]
[337781367,1726113043407,-500.0,0.00021917,2]
[337781368,1726113043417,-2086.99,0.00021917,2]
[337781369,1726113043426,-500.0,0.00021917,2]
[337781370,1726113043436,-367.21276475,0.00021917,2]
[337781371,1726113043446,-500.0,0.00021917,2]
[337781372,1726113043456,-500.0,0.00021917,2]
[337781373,1726113043466,-500.0,0.00021917,2]
[337781374,1726113043477,-506.54580111,0.00021917,2]
[337781375,1726113043486,-500.0,0.00021917,2]
[337781376,1726113043498,-500.0,0.00021917,2]
[337781377,1726113043509,-498.14246116,0.00021917,2]
[337781378,1726113043522,-500.0,0.00021917,2]
[337781379,1726113043532,-506.16393023,0.00021917,2]
[337781380,1726113043542,-829.19,0.00021917,2]
[337781381,1726113043551,-500.0,0.00021917,2]
[337781382,1726113043561,-500.0,0.00021917,2]
[337781383,1726113043571,-500.0,0.00021917,2]
[337781384,1726113043581,-500.0,0.00021917,2]
[337781385,1726113043590,-1859.18,0.00021917,2]
[337781386,1726113043599,-500.0,0.00021917,2]
[337781387,1726113043608,-500.0,0.00021917,2]
[337781388,1726113043618,-500.0,0.00021917,2]
[337781389,1726113043628,-500.0,0.00021917,2]
[337781390,1726113043637,-500.0,0.00021917,2]
[337781391,1726113043647,-1641.64,0.00021917,2]